[Event "55th Rubinstein Memorial-A 2019"]
[Site "Polanica-Zdroj"]
[Date "2019.08.23"]
[Round "7.20"]
[White "Oleksy, Krzysztof"]
[Black "Czarniecka, Aleksandra"]
[Result "1-0"]
[ECO "B07"]
[WhiteElo "1840"]
[BlackElo "2042"]
[Annotator "NA"]
[PlyCount "101"]
[EventDate "2019.08.17"]
[EventType "swiss"]
[EventCountry "POL"]
[SourceTitle "playchess.com"]
[Source "ChessBase"]
[SourceQuality "1"]
[TimeControl "40/5400+30:1800+30"]

1. d4 {[%emt 0:00:00]} d6 {[%emt 0:00:00]} 2. e4 {[%emt 0:00:56]} Nf6 {[%emt 0:00:00]} 3. Nc3 {[%emt 0:00:45]} e5 {[%emt 0:00:03]} 4. dxe5 {[%emt 0:01:40]} dxe5 {[%emt 0:00:34]} 5. Qxd8+ {[%emt 0:00:14]} Kxd8 {[%emt 0:00:07]} 6. Bg5 {[%emt 0:01:36]} c6 {[%emt 0:03:45]} 7. O-O-O+ {[%emt 0:02:24]} Kc7 {[%emt 0:04:21]} 8. Nf3 {[%emt 0:02:14]} Nbd7 {[%emt 0:06:06]} 9. h3 {[%emt 0:09:22]} Bc5 {[%emt 0:10:59]} 10. Bh4 {[%emt 0:09:06]} b5 {[%emt 0:12:55]} 11. Bd3 {[%emt 0:03:27]} Nh5 {[%emt 0:02:36]} 12. g4 {[%emt 0:04:29]} Nf4 {[%emt 0:01:28]} 13. Ne2 {[%emt 0:05:16]} Ne6 {[%emt 0:05:44]} 14. Bg3 {[%emt 0:01:45]} f6 {[%emt 0:00:10]} 15. c3 {[%emt 0:02:13]} a5 {[%emt 0:02:11]} 16. Nfd4 {[%emt 0:10:05]} Nxd4 {[%emt 0:05:39]} 17. cxd4 {[%emt 0:02:10]} Bd6 {[%emt 0:05:51]} 18. f4 {[%emt 0:03:54]} Ba6 {[%emt 0:04:05]} 19. Rhf1 {[%emt 0:02:36]} Rhf8 {[%emt 0:02:21]} 20. a4 {[%emt 0:03:04]} Rae8 {[%emt 0:10:01]} 21. axb5 {[%emt 0:12:31]} cxb5 {[%emt 0:05:15]} 22. Kb1 {[%emt 0:02:28]} Kb7 {[%emt 0:02:12]} 23. f5 {[%emt 0:03:04]} Nb6 {[%emt 0:05:15]} 24. Rc1 {[%emt 0:07:32]} Bb8 {[%emt 0:01:48]} 25. Rc5 {[%emt 0:02:17]} Nd7 {[%emt 0:01:37]} 26. Rc2 {[%emt 0:01:04]} Rc8 {[%emt 0:00:52]} 27. Rfc1 {[%emt 0:01:38]} Rxc2 28. Rxc2 {[%emt 0:00:31]} exd4 {[%emt 0:00:55]} 29. Bxb8 {[%emt 0:00:51]} Nxb8 {[%emt 0:00:07]} 30. Nxd4 {[%emt 0:00:40]} Kb6 {[%emt 0:02:31]} 31. Ne6 {[%emt 0:00:51]} Rf7 {[%emt 0:00:11]} 32. h4 {[%emt 0:01:55]} Re7 {[%emt 0:01:45]} 33. g5 {[%emt 0:01:11]} Nc6 {[%emt 0:00:21]} 34. gxf6 {[%emt 0:02:06]} gxf6 {[%emt 0:00:03]} 35. Rg2 {[%emt 0:00:52]} Nb4 {[%emt 0:01:15]} 36. Be2 {[%emt 0:00:20]} Bb7 {[%emt 0:01:11]} 37. Bf3 {[%emt 0:00:18]} Rd7 {[%emt 0:01:33]} 38. Rg1 {[%emt 0:00:49]} Nd3 {[%emt 0:01:09]} 39. Rd1 {[%emt 0:00:32]} Ne5 {[%emt 0:00:05]} 40. Rxd7 {[%emt 0:00:00]} Nxd7 {[%emt 0:00:00]} 41. Nf4 {[%emt 0:09:58]} Ne5 {[%emt 0:07:24]} 42. Bg2 {[%emt 0:00:56]} Kc5 {[%emt 0:04:09]} 43. Ne6+ {[%emt 0:02:45]} Kc4 {[%emt 0:02:08]} 44. Kc2 {[%emt 0:00:46]} Ng4 {[%emt 0:01:07]} 45. Bf3 {[%emt 0:13:02]} Ne3+ {[%emt 0:08:41]} 46. Kd2 {[%emt 0:01:04]} Nxf5 {[%emt 0:00:34]} 47. Be2+ {[%emt 0:00:36]} Kb4 {[%emt 0:00:37]} 48. exf5 {[%emt 0:00:07]} Be4 {[%emt 0:00:27]} 49. Bd3 {[%emt 0:02:50]} Bxd3 {[%emt 0:00:10]} 50. Kxd3 {[%emt 0:00:04]} Kb3 {[%emt 0:00:10]} 51. Nd4+ 1-0

[Event "55th Rubinstein Memorial-A 2019"]
[Site "Polanica-Zdroj"]
[Date "2019.08.23"]
[Round "7.21"]
[White "Jankowiak, Piotr"]
[Black "Majek, Kacper"]
[Result "1-0"]
[ECO "D00"]
[WhiteElo "2033"]
[BlackElo "1984"]
[Annotator "NA"]
[PlyCount "103"]
[EventDate "2019.08.17"]
[EventType "swiss"]
[EventCountry "POL"]
[SourceTitle "playchess.com"]
[Source "ChessBase"]
[SourceQuality "1"]
[TimeControl "40/5400+30:1800+30"]

1. d4 {[%emt 0:00:00]} d5 {[%emt 0:00:00]} 2. Bf4 {[%emt 0:00:00]} Nf6 {[%emt 0:00:04]} 3. e3 {[%emt 0:00:00]} e6 {[%emt 0:00:33]} 4. Bd3 {[%emt 0:00:49]} c5 {[%emt 0:00:07]} 5. c3 {[%emt 0:00:04]} Bd6 {[%emt 0:00:15]} 6. Bg3 {[%emt 0:00:10]} O-O {[%emt 0:00:57]} 7. Nf3 {[%emt 0:00:05]} Nc6 {[%emt 0:00:12]} 8. Nbd2 {[%emt 0:00:28]} b6 {[%emt 0:00:50]} 9. Qe2 {[%emt 0:01:39]} Bb7 {[%emt 0:00:42]} 10. Rd1 {[%emt 0:00:09]} Qc7 {[%emt 0:04:37]} 11. e4 {[%emt 0:04:50]} dxe4 {[%emt 0:13:18]} 12. Nxe4 {[%emt 0:02:31]} Nxe4 {[%emt 0:01:24]} 13. Qxe4 {[%emt 0:07:13]} g6 {[%emt 0:00:03]} 14. dxc5 {[%emt 0:06:02]} Ne5 {[%emt 0:03:35]} 15. cxd6 {[%emt 0:04:44]} Bxe4 {[%emt 0:00:53]} 16. dxc7 {[%emt 0:00:21]} Nxd3+ {[%emt 0:00:07]} 17. Ke2 {[%emt 0:19:44]} Nxb2 {[%emt 0:00:03]} 18. Rd4 {[%emt 0:00:16]} Bd5 {[%emt 0:00:52]} 19. Ne5 {[%emt 0:08:47]} f6 {[%emt 0:13:14]} 20. Nd7 {[%emt 0:00:54]} Rf7 {[%emt 0:00:45]} 21. Nb8 {[%emt 0:00:12]} Rf8 {[%emt 0:01:27]} 22. Rb1 {[%emt 0:19:10]} Nc4 {[%emt 0:00:02]} 23. Rbd1 {[%emt 0:02:02]} b5 {[%emt 0:01:27]} 24. Rxd5 {[%emt 0:02:10]} exd5 {[%emt 0:00:06]} 25. Rxd5 {[%emt 0:00:10]} Nb6 {[%emt 0:04:43]} 26. Rxb5 {[%emt 0:01:13]} Kf7 {[%emt 0:01:44]} 27. Kd3 {[%emt 0:02:17]} Ke6 {[%emt 0:00:52]} 28. Rc5 {[%emt 0:03:09]} Re8 {[%emt 0:09:26]} 29. Rc6+ {[%emt 0:00:51]} Ke7 {[%emt 0:01:46]} 30. a4 {[%emt 0:00:33]} Rc8 {[%emt 0:01:07]} 31. a5 {[%emt 0:03:37]} Nd7 {[%emt 0:04:13]} 32. Nxd7 {[%emt 0:01:17]} Kxd7 {[%emt 0:00:02]} 33. Rxf6 {[%emt 0:00:08]} Ke7 {[%emt 0:00:40]} 34. Ra6 {[%emt 0:01:04]} Kd7 {[%emt 0:01:26]} 35. c4 {[%emt 0:05:02]} Rf8 {[%emt 0:01:16]} 36. Rd6+ {[%emt 0:00:53]} Ke7 {[%emt 0:02:45]} 37. c5 {[%emt 0:00:18]} Rf5 {[%emt 0:00:41]} 38. Kc4 {[%emt 0:00:48]} Rc8 {[%emt 0:04:28]} 39. Ra6 {[%emt 0:00:24]} Kd7 {[%emt 0:06:16]} 40. Rxa7 {[%emt 0:00:00]} h5 {[%emt 0:00:00]} 41. f3 {[%emt 0:03:29]} h4 {[%emt 0:00:31]} 42. Bd6 {[%emt 0:04:25]} h3 {[%emt 0:00:38]} 43. gxh3 {[%emt 0:02:36]} Rxf3 {[%emt 0:00:06]} 44. Rb7 {[%emt 0:05:09]} Rf1 {[%emt 0:16:21]} 45. a6 {[%emt 0:08:27]} Ra1 {[%emt 0:00:57]} 46. a7 {[%emt 0:01:37]} Ra2 {[%emt 0:08:17]} 47. h4 {[%emt 0:01:45]} Rc2+ {[%emt 0:04:01]} 48. Kd3 {[%emt 0:05:16]} Ra2 {[%emt 0:00:17]} 49. Bg3 {[%emt 0:01:01]} Ra3+ {[%emt 0:01:43]} 50. Kc4 {[%emt 0:00:36]} Re8 {[%emt 0:04:48]} 51. Rb8 {[%emt 0:01:19]} Ra6 {[%emt 0:01:15]} 52. Rxe8 {[%emt 0:00:16]} 1-0

[Event "55th Rubinstein Memorial-A 2019"]
[Site "Polanica-Zdroj"]
[Date "2019.08.23"]
[Round "7.22"]
[White "Wieczorek, Mikolaj"]
[Black "Derylo, Kamil"]
[Result "0-1"]
[ECO "C45"]
[WhiteElo "1709"]
[BlackElo "2030"]
[Annotator "NA"]
[PlyCount "76"]
[EventDate "2019.08.17"]
[EventType "swiss"]
[EventCountry "POL"]
[SourceTitle "playchess.com"]
[Source "ChessBase"]
[SourceQuality "1"]
[TimeControl "40/5400+30:1800+30"]

1. e4 {[%emt 0:00:00]} e5 {[%emt 0:00:00]} 2. Nf3 {[%emt 0:00:00]} Nc6 {[%emt 0:00:00]} 3. d4 {[%emt 0:00:00]} exd4 {[%emt 0:00:09]} 4. Nxd4 {[%emt 0:00:00]} Bc5 {[%emt 0:00:28]} 5. Be3 {[%emt 0:00:08]} Qf6 {[%emt 0:00:23]} 6. c3 {[%emt 0:00:18]} Nge7 {[%emt 0:00:16]} 7. g3 {[%emt 0:00:56]} h5 {[%emt 0:00:34]} 8. h4 {[%emt 0:14:55]} d5 {[%emt 0:00:30]} 9. Bg2 {[%emt 0:00:53]} Bg4 {[%emt 0:00:29]} 10. Qa4 {[%emt 0:09:38]} Bd7 {[%emt 0:00:10]} 11. Qd1 {[%emt 0:00:26]} O-O-O {[%emt 0:00:55]} 12. Nxc6 {[%emt 0:15:05]} Qxc6 {[%emt 0:00:17]} 13. exd5 {[%emt 0:07:18]} Qb5 {[%emt 0:01:14]} 14. Bxc5 {[%emt 0:03:29]} Bg4 {[%emt 0:07:12]} 15. Qd2 {[%emt 0:12:27]} Nxd5 {[%emt 0:05:59]} 16. a4 {[%emt 0:08:38]} Qxc5 {[%emt 0:11:41]} 17. O-O {[%emt 0:00:10]} Rhe8 {[%emt 0:01:29]} 18. b4 {[%emt 0:02:12]} Qc4 {[%emt 0:01:35]} 19. Na3 {[%emt 0:04:20]} Qxc3 {[%emt 0:01:17]} 20. Qg5 {[%emt 0:00:21]} Qe5 {[%emt 0:03:12]} 21. Qd2 {[%emt 0:02:53]} Nc3 {[%emt 0:04:29]} 22. Qc2 {[%emt 0:03:04]} Ne2+ {[%emt 0:03:04]} 23. Kh2 {[%emt 0:01:15]} Nd4 {[%emt 0:00:49]} 24. Qc4 {[%emt 0:01:18]} Be2 {[%emt 0:01:25]} 25. Qxf7 {[%emt 0:01:35]} Rf8 {[%emt 0:01:59]} 26. Nc4 {[%emt 0:02:55]} Qf6 {[%emt 0:05:53]} 27. Qxf6 {[%emt 0:02:08]} Rxf6 {[%emt 0:00:47]} 28. Rfc1 {[%emt 0:02:41]} Nb3 {[%emt 0:00:55]} 29. Na5 {[%emt 0:00:35]} Nxa1 {[%emt 0:03:45]} 30. Bxb7+ {[%emt 0:00:26]} Kb8 {[%emt 0:04:54]} 31. Rxa1 {[%emt 0:00:47]} Rd1 {[%emt 0:01:51]} 32. Ra2 {[%emt 0:02:44]} Rxf2+ {[%emt 0:08:24]} 33. Bg2 {[%emt 0:00:07]} Rdf1 {[%emt 0:00:14]} 34. Nc6+ {[%emt 0:00:07]} Kc8 {[%emt 0:00:12]} 35. Rd2 {[%emt 0:01:03]} Bf3 {[%emt 0:03:37]} 36. Rd8+ {[%emt 0:00:35]} Kb7 {[%emt 0:00:08]} 37. Na5+ {[%emt 0:00:03]} Ka6 {[%emt 0:00:18]} 38. Rd2 {[%emt 0:01:18]} Rxd2 {[%emt 0:00:42]} 0-1

[Event "55th Rubinstein Memorial-A 2019"]
[Site "Polanica-Zdroj"]
[Date "2019.08.23"]
[Round "7.23"]
[White "Kulesza, Andrzej"]
[Black "Goraj, Barbara"]
[Result "1-0"]
[ECO "B50"]
[WhiteElo "1940"]
[BlackElo "1800"]
[Annotator "NA"]
[PlyCount "137"]
[EventDate "2019.08.17"]
[EventType "swiss"]
[EventCountry "POL"]
[SourceTitle "playchess.com"]
[Source "ChessBase"]
[SourceQuality "1"]
[TimeControl "40/5400+30:1800+30"]

1. e4 c5 2. Nf3 d6 3. c3 Nf6 4. h3 g6 5. Bd3 Qc7 6. Bc2 Bg7 7. O-O O-O 8. d4 Nbd7 9. Re1 e5 10. Nbd2 exd4 11. cxd4 d5 12. e5 Ne4 13. Nxe4 dxe4 14. Bxe4 cxd4 15. Bf4 Re8 16. Qxd4 Nxe5 17. Nxe5 Rxe5 18. Rac1 Qe7 19. Bxe5 Bxe5 20. Bxb7 Qxb7 21. Qxe5 Be6 22. a3 a5 23. Rc7 Qb3 24. Qc3 Qd5 25. Rc5 Qd8 26. b4 axb4 27. axb4 Rb8 28. b5 Qd7 29. Rc7 Qd6 30. Qe5 Qd8 31. Qc5 Rxb5 32. Qxb5 Qxc7 33. Qb2 Qd8 34. Qe5 Qd5 35. Qc3 h5 36. Rb1 Kh7 37. Qc7 Qd4 38. Rb8 Qf6 39. f4 Qg7 40. Kh2 Bf5 41. Re8 Be6 42. Re7 Qf6 43. Qd6 Kg7 44. Re8 Kh7 45. Qe5 Qxe5 46. fxe5 Bd5 47. h4 Kg7 48. g3 Bc6 49. Re7 Kf8 50. Rc7 Bd5 51. Kg1 Be6 52. Kf2 Bf5 53. Ke3 Be6 54. Kd4 Ba2 55. Kc5 Bb3 56. Kd6 Kg7 57. Rb7 Ba2 58. Ke7 Bd5 59. Rb4 Be6 60. Rf4 Bd5 61. g4 hxg4 62. Rxg4 Kh6 63. Kf6 Kh5 64. Rd4 Be6 65. Ra4 Bb3 66. Ra7 Kxh4 67. Rxf7 g5 68. Rh7+ Kg4 69. Rg7 1-0

[Event "55th Rubinstein Memorial-A 2019"]
[Site "Polanica-Zdroj"]
[Date "2019.08.23"]
[Round "7.24"]
[White "Siekanski, Janusz"]
[Black "Twardowski, Hubert"]
[Result "1-0"]
[ECO "D85"]
[WhiteElo "2263"]
[BlackElo "1822"]
[Annotator "NA"]
[PlyCount "75"]
[EventDate "2019.08.17"]
[EventType "swiss"]
[EventCountry "POL"]
[SourceTitle "playchess.com"]
[Source "ChessBase"]
[SourceQuality "1"]
[TimeControl "40/5400+30:1800+30"]

1. d4 {[%emt 0:00:00]} Nf6 {[%emt 0:00:07]} 2. c4 {[%emt 0:00:00]} g6 {[%emt 0:00:09]} 3. Nc3 {[%emt 0:00:00]} d5 {[%emt 0:00:05]} 4. cxd5 {[%emt 0:00:03]} Nxd5 {[%emt 0:00:34]} 5. e4 {[%emt 0:00:10]} Nxc3 {[%emt 0:00:32]} 6. bxc3 {[%emt 0:00:06]} Bg7 {[%emt 0:00:07]} 7. Be3 {[%emt 0:00:11]} c5 {[%emt 0:02:28]} 8. Qd2 {[%emt 0:00:13]} Nc6 {[%emt 0:05:38]} 9. d5 {[%emt 0:01:18]} Qa5 {[%emt 0:02:50]} 10. Rc1 {[%emt 0:00:22]} Ne5 {[%emt 0:01:31]} 11. Be2 {[%emt 0:04:51]} O-O {[%emt 0:09:02]} 12. f4 {[%emt 0:04:56]} Ng4 {[%emt 0:02:24]} 13. Bxg4 {[%emt 0:01:24]} Bxg4 {[%emt 0:00:51]} 14. f5 {[%emt 0:00:26]} gxf5 {[%emt 0:02:49]} 15. h3 {[%emt 0:00:38]} f4 {[%emt 0:07:28]} 16. Bxf4 {[%emt 0:04:32]} Bh5 {[%emt 0:14:32]} 17. Bh6 {[%emt 0:12:59]} Bg6 {[%emt 0:04:59]} 18. Bxg7 {[%emt 0:01:04]} Kxg7 {[%emt 0:00:05]} 19. Ne2 {[%emt 0:16:28]} Rad8 {[%emt 0:10:00]} 20. Ng3 {[%emt 0:06:21]} e6 {[%emt 0:02:54]} 21. O-O {[%emt 0:01:20]} f6 {[%emt 0:19:01]} 22. Rcd1 {[%emt 0:07:56]} exd5 {[%emt 0:00:18]} 23. exd5 {[%emt 0:00:17]} c4 {[%emt 0:00:44]} 24. Nf5+ {[%emt 0:01:18]} Bxf5 {[%emt 0:01:36]} 25. Rxf5 {[%emt 0:02:18]} Qc5+ {[%emt 0:00:39]} 26. Kh1 {[%emt 0:00:25]} Rd6 {[%emt 0:00:09]} 27. Re1 {[%emt 0:07:43]} Rd7 {[%emt 0:02:17]} 28. Qd1 {[%emt 0:04:54]} Kh8 {[%emt 0:01:09]} 29. Qf3 {[%emt 0:02:22]} Re7 {[%emt 0:00:34]} 30. Re6 {[%emt 0:05:41]} Rxe6 {[%emt 0:01:12]} 31. dxe6 {[%emt 0:00:02]} Qe7 {[%emt 0:01:15]} 32. Qe4 {[%emt 0:01:05]} Re8 {[%emt 0:00:26]} 33. Rh5 {[%emt 0:02:22]} Rc8 {[%emt 0:01:24]} 34. Rd5 Rc7 {[%emt 0:04:32]} 35. a4 {[%emt 0:06:37]} Kg7 {[%emt 0:02:19]} 36. a5 {[%emt 0:01:35]} Kf8 {[%emt 0:00:30]} 37. Qf4 {[%emt 0:01:12]} Kg7 {[%emt 0:00:45]} 38. Qxc7 {[%emt 0:00:15]} 1-0

[Event "55th Rubinstein Memorial-A 2019"]
[Site "Polanica-Zdroj"]
[Date "2019.08.23"]
[Round "7.25"]
[White "Jeda, Maciej"]
[Black "Rosol, Alexander"]
[Result "1-0"]
[ECO "C41"]
[WhiteElo "1815"]
[BlackElo "1968"]
[Annotator "NA"]
[PlyCount "55"]
[EventDate "2019.08.17"]
[EventType "swiss"]
[EventCountry "POL"]
[SourceTitle "playchess.com"]
[Source "ChessBase"]
[SourceQuality "1"]
[TimeControl "40/5400+30:1800+30"]

1. e4 {[%emt 0:00:00]} d6 {[%emt 0:00:00]} 2. d4 {[%emt 0:00:00]} Nf6 {[%emt 0:00:00]} 3. Nc3 {[%emt 0:00:00]} e5 {[%emt 0:00:00]} 4. Nf3 {[%emt 0:00:20]} Nbd7 {[%emt 0:00:03]} 5. Bc4 {[%emt 0:00:20]} Be7 {[%emt 0:00:08]} 6. O-O {[%emt 0:00:21]} O-O {[%emt 0:00:16]} 7. Re1 {[%emt 0:00:22]} c6 {[%emt 0:00:16]} 8. a4 {[%emt 0:00:08]} a5 {[%emt 0:00:06]} 9. h3 {[%emt 0:00:16]} h6 {[%emt 0:00:07]} 10. Be3 {[%emt 0:00:12]} Re8 {[%emt 0:00:30]} 11. Qd2 {[%emt 0:00:39]} exd4 {[%emt 0:01:25]} 12. Qxd4 {[%emt 0:08:37]} Nf8 {[%emt 0:16:13]} 13. Rad1 {[%emt 0:17:00]} Be6 {[%emt 0:01:56]} 14. Bf4 {[%emt 0:03:30]} Bxc4 {[%emt 0:20:39]} 15. Qxc4 {[%emt 0:00:13]} Ng6 {[%emt 0:05:29]} 16. Bh2 {[%emt 0:03:15]} Qb6 {[%emt 0:06:25]} 17. Bxd6 {[%emt 0:10:25]} Bxd6 {[%emt 0:04:44]} 18. Rxd6 {[%emt 0:00:11]} Qxb2 {[%emt 0:02:04]} 19. Rb1 {[%emt 0:05:28]} Qa3 {[%emt 0:04:56]} 20. Rxb7 {[%emt 0:01:53]} Rf8 {[%emt 0:01:54]} 21. Rd1 {[%emt 0:03:49]} Rae8 {[%emt 0:04:52]} 22. Rc7 {[%emt 0:27:53]} Qb2 {[%emt 0:11:48]} 23. Qxc6 {[%emt 0:04:13]} Qxc2 {[%emt 0:00:44]} 24. Nd4 {[%emt 0:01:02]} Qb2 {[%emt 0:01:15]} 25. Rb7 {[%emt 0:01:19]} Qa3 {[%emt 0:00:05]} 26. Nc2 {[%emt 0:01:14]} Re6 {[%emt 0:03:30]} 27. Qc4 {[%emt 0:04:50]} Ne5 {[%emt 0:01:35]} 28. Qc7 {[%emt 0:00:37]} 1-0

[Event "55th Rubinstein Memorial-A 2019"]
[Site "Polanica-Zdroj"]
[Date "2019.08.23"]
[Round "7.26"]
[White "Michalska, Aleksandra"]
[Black "Kopica, Paulina"]
[Result "1/2-1/2"]
[ECO "B20"]
[WhiteElo "1792"]
[BlackElo "1932"]
[Annotator "NA"]
[PlyCount "81"]
[EventDate "2019.08.17"]
[EventType "swiss"]
[EventCountry "POL"]
[SourceTitle "playchess.com"]
[Source "ChessBase"]
[SourceQuality "1"]
[TimeControl "40/5400+30:1800+30"]

1. e4 {[%emt 0:00:00]} c5 {[%emt 0:00:00]} 2. c4 {[%emt 0:00:00]} Nc6 {[%emt 0:00:00]} 3. Nc3 {[%emt 0:00:00]} g6 {[%emt 0:00:00]} 4. Nf3 {[%emt 0:00:00]} Bg7 {[%emt 0:00:03]} 5. Be2 {[%emt 0:00:00]} e6 {[%emt 0:00:34]} 6. d3 {[%emt 0:01:01]} Nge7 {[%emt 0:01:55]} 7. Be3 {[%emt 0:01:22]} d6 {[%emt 0:03:37]} 8. d4 {[%emt 0:03:40]} cxd4 {[%emt 0:00:08]} 9. Nxd4 {[%emt 0:00:11]} a6 {[%emt 0:00:34]} 10. Qd2 {[%emt 0:03:06]} O-O {[%emt 0:02:54]} 11. h4 {[%emt 0:04:55]} d5 {[%emt 0:11:09]} 12. exd5 {[%emt 0:02:35]} exd5 {[%emt 0:00:23]} 13. cxd5 {[%emt 0:01:27]} Nxd5 {[%emt 0:03:22]} 14. Nxc6 {[%emt 0:06:24]} bxc6 {[%emt 0:02:37]} 15. Nxd5 {[%emt 0:04:32]} Qxd5 {[%emt 0:05:02]} 16. Qxd5 {[%emt 0:06:42]} cxd5 {[%emt 0:00:06]} 17. O-O-O {[%emt 0:00:53]} Be6 {[%emt 0:03:43]} 18. Kb1 {[%emt 0:01:17]} Rfc8 {[%emt 0:03:44]} 19. g4 {[%emt 0:03:35]} Rab8 {[%emt 0:13:43]} 20. Bd4 {[%emt 0:02:57]} Rb4 {[%emt 0:02:15]} 21. Bxg7 {[%emt 0:01:39]} Kxg7 {[%emt 0:00:03]} 22. Rhg1 {[%emt 0:06:07]} Rcb8 {[%emt 0:02:33]} 23. Rd2 {[%emt 0:01:04]} a5 {[%emt 0:06:10]} 24. Rg3 {[%emt 0:04:26]} f5 {[%emt 0:06:01]} 25. a3 {[%emt 0:08:23]} Rf4 {[%emt 0:09:23]} 26. f3 {[%emt 0:03:52]} Rb3 {[%emt 0:05:49]} 27. Bd1 {[%emt 0:01:19]} Re3 {[%emt 0:00:23]} 28. Rg1 {[%emt 0:02:57]} d4 {[%emt 0:10:42]} 29. Kc1 {[%emt 0:07:50]} d3 {[%emt 0:03:48]} 30. Rh2 {[%emt 0:03:49]} Bc4 {[%emt 0:01:02]} 31. Kd2 {[%emt 0:02:09]} Re7 {[%emt 0:01:21]} 32. gxf5 {[%emt 0:02:44]} Rxf5 {[%emt 0:00:07]} 33. Rg4 {[%emt 0:02:38]} Bb5 {[%emt 0:00:29]} 34. h5 {[%emt 0:01:32]} Ree5 {[%emt 0:02:00]} 35. hxg6 {[%emt 0:00:52]} hxg6 {[%emt 0:00:01]} 36. Rhg2 {[%emt 0:00:32]} Rf6 {[%emt 0:00:30]} 37. f4 {[%emt 0:01:33]} Ref5 {[%emt 0:00:48]} 38. Rg5 {[%emt 0:01:04]} Bc6 {[%emt 0:00:42]} 39. Rxf5 {[%emt 0:03:21]} Rxf5 {[%emt 0:00:05]} 40. Rg5 {[%emt 0:00:00]} Rxf4 {[%emt 0:00:00]} 41. Kxd3 {[%emt 0:01:39]} 1/2-1/2

[Event "55th Rubinstein Memorial-A 2019"]
[Site "Polanica-Zdroj"]
[Date "2019.08.23"]
[Round "7.27"]
[White "Rak, Maciej"]
[Black "Mielczarek, Daniel"]
[Result "1/2-1/2"]
[ECO "B15"]
[WhiteElo "1779"]
[BlackElo "1924"]
[Annotator "NA"]
[PlyCount "61"]
[EventDate "2019.08.17"]
[EventType "swiss"]
[EventCountry "POL"]
[SourceTitle "playchess.com"]
[Source "ChessBase"]
[SourceQuality "1"]
[TimeControl "40/5400+30:1800+30"]

1. e4 {[%emt 0:00:00]} c6 {[%emt 0:00:00]} 2. d4 {[%emt 0:00:01]} d5 {[%emt 0:00:00]} 3. Nc3 {[%emt 0:00:19]} dxe4 {[%emt 0:00:00]} 4. Nxe4 {[%emt 0:00:08]} Nf6 {[%emt 0:00:05]} 5. Nxf6+ {[%emt 0:00:22]} exf6 {[%emt 0:00:20]} 6. c3 {[%emt 0:00:23]} Bd6 {[%emt 0:00:58]} 7. Bd3 {[%emt 0:00:42]} O-O {[%emt 0:00:19]} 8. Qc2 {[%emt 0:00:31]} h6 {[%emt 0:00:21]} 9. Ne2 {[%emt 0:00:21]} Re8 {[%emt 0:00:20]} 10. Bd2 {[%emt 0:02:31]} Nd7 {[%emt 0:00:45]} 11. O-O-O {[%emt 0:01:33]} b5 {[%emt 0:00:30]} 12. g4 {[%emt 0:11:26]} Nb6 {[%emt 0:02:35]} 13. f3 {[%emt 0:20:57]} Be6 {[%emt 0:13:03]} 14. Kb1 {[%emt 0:05:58]} Nc4 {[%emt 0:03:15]} 15. Bc1 {[%emt 0:07:46]} Qa5 {[%emt 0:04:41]} 16. b3 {[%emt 0:01:26]} Na3+ {[%emt 0:02:45]} 17. Bxa3 {[%emt 0:00:07]} Qxa3 {[%emt 0:00:19]} 18. h4 {[%emt 0:10:23]} a5 {[%emt 0:04:47]} 19. g5 {[%emt 0:08:19]} hxg5 {[%emt 0:04:30]} 20. hxg5 {[%emt 0:02:17]} f5 {[%emt 0:00:47]} 21. Rh3 {[%emt 0:11:25]} g6 {[%emt 0:01:41]} 22. f4 {[%emt 0:07:25]} Kg7 {[%emt 0:02:09]} 23. d5 {[%emt 0:04:03]} cxd5 {[%emt 0:00:53]} 24. Bxb5 {[%emt 0:01:28]} Rh8 {[%emt 0:03:12]} 25. Rdh1 {[%emt 0:00:54]} Rxh3 {[%emt 0:02:08]} 26. Rxh3 {[%emt 0:00:00]} Rh8 {[%emt 0:00:11]} 27. Rxh8 {[%emt 0:01:25]} Kxh8 {[%emt 0:00:02]} 28. Qd2 {[%emt 0:01:02]} Qc5 {[%emt 0:00:20]} 29. Nd4 {[%emt 0:00:38]} Kg8 {[%emt 0:04:29]} 30. Kb2 {[%emt 0:00:31]} Qa3+ {[%emt 0:04:25]} 31. Kb1 1/2-1/2